[Event "Israel-ch Youth U8-18 2024"]
[Site "Kfar Saba"]
[Date "2024.04.16"]
[Round "1.6"]
[White "Menahem, Adi"]
[Black "Goz, Shachar"]
[Result "1-0"]
[ECO "D02"]
[WhiteElo "2112"]
[BlackElo "1794"]
[Annotator "NA RC"]
[PlyCount "153"]
[EventDate "2024.04.10"]
[EventType "swiss"]
[EventCountry "ISR"]
[SourceTitle "playchess.com"]
[Source "ChessBase"]
[SourceQuality "1"]
[TimeControl "5400+30"]

1. d4 {[%emt 0:00:12]} d5 {[%emt 0:00:04]} 2. Bf4 {[%emt 0:00:41]} Nf6 {[%emt 0:00:11]} 3. e3 {[%emt 0:00:22]} e6 {[%emt 0:00:20]} 4. Nf3 {[%emt 0:00:37]} Bd6 {[%emt 0:00:17]} 5. Ne5 {[%emt 0:01:20]} O-O {[%emt 0:00:41]} 6. Bd3 {[%emt 0:01:07]} c5 {[%emt 0:00:59]} 7. c3 {[%emt 0:00:41]} Nc6 {[%emt 0:01:06] D02: 1 d4 d5 2 Nf3 sidelines, including 2...Nf6 3 g3 and 2...Nf6 3 Bf4.} 8. Nd2 {[%emt 0:10:08]} Ne7 {[%emt 0:03:21]} 9. Qf3 {[%emt 0:03:02]} Ng6 {[%emt 0:03:01]} 10. Bxg6 {[%emt 0:15:31]} fxg6 {[%emt 0:10:04]} 11. Qh3 {[%emt 0:06:31]} Nh5 {[%emt 0:00:36]} 12. Bg3 {[%emt 0:01:53]} Qc7 {[%emt 0:07:06]} 13. Ndf3 {[%emt 0:04:03]} b6 {[%emt 0:02:11]} 14. Rd1 {[%emt 0:07:07]} a5 {[%emt 0:04:21]} 15. Ng5 {[%emt 0:04:13] [#]} (15. O-O $11) 15... a4 {[%emt 0:00:36]} ({Black should play} 15... cxd4 $1 $17 16. exd4 Rf5) 16. a3 {[%emt 0:07:23] [#]} (16. O-O $1 $11 {was the only way to keep the balance.}) 16... Rf5 {[%emt 0:05:45]} (16... cxd4 $1 $17 17. exd4 Rf5) 17. f4 $2 {[%emt 0:09:41] [#]} (17. Nef3 $15) 17... Ra5 $2 {[%emt 0:00:19]} (17... cxd4 $1 $19 18. exd4 Bxe5 (18... Nxf4 $2 {loses.} 19. Qxh7+ Kf8 20. Bxf4 $18) 19. dxe5 Qc4 (19... Nxf4 $2 20. Qxh7+ Kf8 21. Qh8+ Ke7 22. Qxg7+ Kd8 23. Qg8+ Ke7 24. O-O $18) (19... h6 20. Nf3 $17)) 18. Bf2 $2 {[%emt 0:02:58] [#]} (18. O-O $14) 18... Bxe5 $2 {[%emt 0:10:44]} (18... cxd4 $1 $17 {and life is bright.} 19. cxd4 Ba6) 19. dxe5 {[%emt 0:01:13]} h6 {[%emt 0:00:55]} 20. Nf3 {[%emt 0:01:47]} Rb5 {[%emt 0:06:34]} 21. Rd2 $1 {[%emt 0:03:16]} ({Reject} 21. g4 Nxf4 22. exf4 Rxf4 $11) 21... Rf8 {[%emt 0:06:38]} 22. g4 {[%emt 0:02:48]} Nxf4 {[%emt 0:00:02]} 23. exf4 {[%emt 0:00:01]} Rxf4 {[%emt 0:00:01] [#]} 24. O-O $1 {[%emt 0:00:32]} Rb3 $2 {[%emt 0:03:40]} (24... d4 $16 {was worth a try.}) 25. Bg3 {[%emt 0:02:54]} Re4 {[%emt 0:00:01]} (25... Rf7 $142 26. g5 h5) 26. Rdf2 {[%emt 0:01:56]} Ba6 {[%emt 0:01:54] [#]} 27. Ng5 $1 {[%emt 0:02:57]} Bxf1 {[%emt 0:00:59]} ({Not} 27... hxg5 28. Rf8#) 28. Qxf1 {[%emt 0:00:05]} Qd8 {[%emt 0:00:20]} 29. Nxe4 {[%emt 0:02:56]} dxe4 {[%emt 0:00:02]} 30. Qe1 {[%emt 0:02:10]} Qd3 {[%emt 0:07:06]} 31. Rd2 {[%emt 0:00:13]} Qf3 {[%emt 0:00:05]} 32. Qe2 {[%emt 0:00:36]} Qxe2 {[%emt 0:01:53]} 33. Rxe2 {[%emt 0:00:01]} g5 {[%emt 0:00:14]} 34. Rxe4 {[%emt 0:02:23]} Rxb2 {[%emt 0:00:06]} 35. Rxa4 {[%emt 0:00:02]} Rb1+ {[%emt 0:01:36]} 36. Kg2 {[%emt 0:00:08]} Rc1 {[%emt 0:00:27]} 37. Ra8+ {[%emt 0:00:52]} Kf7 {[%emt 0:00:14]} 38. Ra7+ {[%emt 0:00:04]} Kg8 {[%emt 0:00:32]} 39. Rb7 {[%emt 0:00:26]} Rxc3 {[%emt 0:00:06]} 40. Rxb6 {[%emt 0:00:12]} Rxa3 {[%emt 0:00:05]} 41. Rxe6 {[%emt 0:00:54]} c4 {[%emt 0:00:14]} 42. Rc6 {[%emt 0:00:12]} c3 $18 {[%emt 0:00:50]} 43. e6 {[%emt 0:00:47]} c2 {[%emt 0:01:20]} 44. Rxc2 {[%emt 0:00:37]} Re3 {[%emt 0:00:01]} 45. Rc8+ {[%emt 0:00:01]} Kh7 {[%emt 0:00:11]} 46. Rc6 {[%emt 0:00:05]} Kg6 {[%emt 0:00:53]} 47. Kf2 {[%emt 0:00:48]} Ra3 {[%emt 0:00:53]} 48. Be5 {[%emt 0:01:49]} Ra2+ {[%emt 0:01:24]} 49. Kf3 {[%emt 0:00:37]} h5 {[%emt 0:00:12]} 50. e7+ {[%emt 0:01:50]} Kf7 {[%emt 0:00:02]} 51. gxh5 {[%emt 0:00:11]} g4+ {[%emt 0:00:08]} 52. Kxg4 {[%emt 0:00:39]} Kxe7 {[%emt 0:00:18]} 53. Rc7+ {[%emt 0:00:59]} Ke6 {[%emt 0:00:01]} 54. Bxg7 {[%emt 0:00:21]} Rxh2 {[%emt 0:00:16]} 55. Kg5 {[%emt 0:00:31]} Rg2+ {[%emt 0:00:14]} 56. Kh6 {[%emt 0:00:05]} Rh2 {[%emt 0:00:53]} 57. Kg6 {[%emt 0:00:14]} Rh3 {[%emt 0:01:01]} 58. h6 {[%emt 0:00:14]} Rh1 {[%emt 0:00:27]} 59. Kh7 {[%emt 0:00:13]} Rb1 {[%emt 0:01:16]} 60. Kg8 {[%emt 0:00:36]} Rb8+ {[%emt 0:00:20]} 61. Bf8 {[%emt 0:00:05]} Rb1 {[%emt 0:00:38]} 62. h7 {[%emt 0:00:07]} Rg1+ {[%emt 0:00:21]} 63. Bg7 {[%emt 0:00:06]} Rh1 {[%emt 0:00:16]} 64. h8=R {[%emt 0:00:14]} Rb1 {[%emt 0:00:20]} 65. Rh6+ {[%emt 0:00:06]} Kd5 {[%emt 0:00:07]} 66. Rf7 {[%emt 0:00:18]} Ke4 {[%emt 0:00:19]} 67. Re6+ {[%emt 0:00:22]} Kd5 {[%emt 0:00:06]} 68. Re5+ {[%emt 0:00:03]} Kc4 {[%emt 0:00:30]} 69. Rc7+ {[%emt 0:00:05]} Kd3 {[%emt 0:00:06]} 70. Rd5+ {[%emt 0:00:14]} Ke4 {[%emt 0:00:01]} 71. Rd4+ {[%emt 0:00:05]} Ke3 {[%emt 0:00:37]} 72. Rc3+ {[%emt 0:00:11]} Ke2 {[%emt 0:27:03]} 73. Rh4 {[%emt 0:00:21]} Rb8+ {[%emt 0:00:00]} 74. Kh7 {[%emt 0:00:01]} Rb7 {[%emt 0:00:00]} 75. Rh2+ {[%emt 0:00:07]} Kd1 {[%emt 0:00:00]} 76. Rg3 {[%emt 0:00:18]} Re7 {[%emt 0:00:00]} 77. Rg1+ {[%emt 0:00:06]} 1-0

[Event "Israel-ch Youth U8-18 2024"]
[Site "Kfar Saba"]
[Date "2024.04.16"]
[Round "1.7"]
[White "Hanein, Avri"]
[Black "Zakin, Ilay"]
[Result "1-0"]
[ECO "B33"]
[WhiteElo "1755"]
[BlackElo "2178"]
[Annotator "RC"]
[PlyCount "141"]
[EventDate "2024.04.10"]
[EventType "swiss"]
[EventCountry "ISR"]
[SourceTitle "playchess.com"]
[Source "ChessBase"]
[SourceQuality "1"]
[TimeControl "5400+30"]

1. e4 {[%emt 0:00:10]} c5 {[%emt 0:00:06]} 2. Nf3 {[%emt 0:00:10]} Nc6 {[%emt 0:00:06]} 3. d4 {[%emt 0:00:05]} cxd4 {[%emt 0:00:07]} 4. Nxd4 {[%emt 0:00:08]} Nf6 {[%emt 0:00:07]} 5. Nc3 {[%emt 0:00:04]} e5 {[%emt 0:00:22]} 6. Ndb5 {[%emt 0:00:06]} d6 {[%emt 0:00:09]} 7. Bg5 {[%emt 0:00:12]} a6 {[%emt 0:00:11]} 8. Na3 {[%emt 0:00:04]} b5 {[%emt 0:00:08]} 9. Nd5 {[%emt 0:00:05]} Be7 {[%emt 0:00:22]} 10. Bxf6 {[%emt 0:00:06]} Bxf6 {[%emt 0:00:08]} 11. c3 {[%emt 0:00:05]} O-O {[%emt 0:00:13]} 12. Nc2 {[%emt 0:00:11]} Rb8 {[%emt 0:00:21]} 13. Be2 {[%emt 0:00:53]} Bg5 {[%emt 0:01:05]} 14. O-O {[%emt 0:00:54]} Ne7 {[%emt 0:05:24]} 15. Ncb4 {[%emt 0:01:52]} Bb7 {[%emt 0:00:54]} 16. a4 {[%emt 0:09:34]} a5 {[%emt 0:11:35]} 17. Nxe7+ {[%emt 0:04:14]} Bxe7 {[%emt 0:00:05]} 18. Nd5 {[%emt 0:00:22]} bxa4 {[%emt 0:00:44]} 19. Bb5 {[%emt 0:05:11]} Bg5 {[%emt 0:12:54]} 20. c4 {[%emt 0:08:35]} f5 {[%emt 0:04:45]} 21. exf5 {[%emt 0:29:33]} Rxf5 {[%emt 0:00:24]} 22. Qxa4 {[%emt 0:03:28]} e4 {[%emt 0:12:02]} 23. Rae1 {[%emt 0:11:20]} Re5 {[%emt 0:02:05]} 24. Re2 {[%emt 0:05:20]} Kh8 {[%emt 0:17:11]} 25. Ne3 {[%emt 0:06:59]} Qb6 {[%emt 0:02:06]} 26. Bd7 {[%emt 0:03:10]} Rf8 {[%emt 0:01:08]} 27. Qa3 {[%emt 0:01:41]} Ba6 {[%emt 0:08:43]} 28. Qc3 {[%emt 0:01:02]} Qc5 {[%emt 0:02:44]} 29. b3 {[%emt 0:00:15]} Re7 {[%emt 0:00:39]} 30. Bh3 {[%emt 0:01:12]} Bf6 {[%emt 0:00:37]} 31. Qc2 {[%emt 0:00:03]} Bb7 {[%emt 0:00:46]} 32. Rd1 {[%emt 0:01:06]} Re5 {[%emt 0:02:40]} 33. g3 {[%emt 0:02:16]} Bg5 {[%emt 0:03:03]} 34. Bg2 {[%emt 0:00:40]} Bxe3 {[%emt 0:04:03]} 35. Rxe3 {[%emt 0:00:17]} Rfe8 {[%emt 0:01:43]} 36. Qc3 {[%emt 0:00:42]} h6 {[%emt 0:00:56]} 37. Qd4 {[%emt 0:00:15]} Qa3 {[%emt 0:03:31]} 38. Qxd6 {[%emt 0:00:45]} Qa2 {[%emt 0:00:02]} 39. Qd2 {[%emt 0:01:20]} Qa3 {[%emt 0:00:12]} 40. Qc3 {[%emt 0:01:03]} R5e7 {[%emt 0:00:47]} 41. Ra1 {[%emt 0:00:28]} Qd6 {[%emt 0:01:05]} 42. Rxa5 {[%emt 0:00:02]} Qd1+ {[%emt 0:02:16]} 43. Re1 {[%emt 0:00:05]} Qd3 {[%emt 0:01:14]} 44. Qxd3 {[%emt 0:01:59]} exd3 {[%emt 0:00:03]} 45. Rxe7 {[%emt 0:00:20]} Rxe7 {[%emt 0:00:04]} 46. Bxb7 {[%emt 0:00:46]} d2 {[%emt 0:00:03]} 47. Bf3 {[%emt 0:00:23]} Re1+ {[%emt 0:00:42]} 48. Kg2 {[%emt 0:00:04]} Rb1 {[%emt 0:00:33]} 49. Rd5 {[%emt 0:00:11]} Rxb3 {[%emt 0:00:48]} 50. Rxd2 {[%emt 0:00:05]} Rc3 {[%emt 0:00:08]} 51. Rd8+ {[%emt 0:00:13]} Kh7 {[%emt 0:00:01]} 52. Be4+ {[%emt 0:00:31]} g6 {[%emt 0:00:01]} 53. Rd7+ {[%emt 0:00:19]} Kh8 {[%emt 0:00:01]} 54. Rc7 {[%emt 0:00:23]} g5 {[%emt 0:00:03]} 55. c5 {[%emt 0:00:13]} h5 {[%emt 0:00:08]} 56. h3 {[%emt 0:00:50]} h4 {[%emt 0:00:05]} 57. g4 {[%emt 0:00:22]} Kg8 {[%emt 0:00:16]} 58. c6 {[%emt 0:00:08]} Kf8 {[%emt 0:00:02]} 59. Rb7 {[%emt 0:00:29]} Rc4 {[%emt 0:00:37]} 60. c7 {[%emt 0:00:28]} Ke8 {[%emt 0:00:10]} 61. Bf5 {[%emt 0:00:10]} Kf8 {[%emt 0:00:59]} 62. c8=Q+ {[%emt 0:00:08]} Rxc8 {[%emt 0:00:06]} 63. Bxc8 {[%emt 0:00:08]} Kg8 {[%emt 0:00:03]} 64. Kf3 {[%emt 0:00:12]} Kf8 {[%emt 0:00:01]} 65. Ke4 {[%emt 0:00:06]} Kg8 {[%emt 0:00:05]} 66. Ke5 {[%emt 0:00:11]} Kf8 {[%emt 0:00:04]} 67. Bf5 {[%emt 0:00:22]} Ke8 {[%emt 0:00:05]} 68. Kd6 {[%emt 0:00:08]} Kf8 {[%emt 0:00:02]} 69. Ke6 {[%emt 0:00:09]} Kg8 {[%emt 0:00:01]} 70. Kf6 {[%emt 0:00:11]} Kh8 {[%emt 0:00:05]} 71. Rb8# {[%emt 0:00:05]} 1-0

[Event "Israel-ch Youth U8-18 2024"]
[Site "Kfar Saba"]
[Date "2024.04.16"]
[Round "1.8"]
[White "Shefer, Uri"]
[Black "Versano, Meitar"]
[Result "1-0"]
[ECO "A80"]
[WhiteElo "1991"]
[BlackElo "1678"]
[Annotator "NA RC"]
[PlyCount "90"]
[EventDate "2024.04.10"]
[EventType "swiss"]
[EventCountry "ISR"]
[SourceTitle "playchess.com"]
[Source "ChessBase"]
[SourceQuality "1"]
[TimeControl "5400+30"]

1. d4 {[%emt 0:00:01]} f5 {[%emt 0:00:10]} 2. Bf4 {[%emt 0:00:05]} Nf6 {[%emt 0:00:09]} 3. e3 {[%emt 0:00:30]} g6 {[%emt 0:00:21]} 4. Be2 {[%emt 0:01:07]} Bg7 {[%emt 0:00:37]} 5. h4 {[%emt 0:00:27]} h6 {[%emt 0:01:01]} 6. c4 {[%emt 0:01:23] A80: Dutch Defence: Unusual White second moves.} d6 {[%emt 0:00:48]} 7. Nc3 {[%emt 0:00:44]} O-O {[%emt 0:02:04]} 8. Qb3 {[%emt 0:00:44]} Nc6 {[%emt 0:03:55]} 9. Rd1 {[%emt 0:04:56]} e6 {[%emt 0:06:43]} 10. c5 {[%emt 0:08:41]} Qe7 {[%emt 0:01:40]} (10... dxc5 $11 11. dxc5 Qe7) 11. cxd6 {[%emt 0:09:42]} cxd6 {[%emt 0:00:27]} 12. Nf3 {[%emt 0:04:41]} Nd8 {[%emt 0:06:13]} ({Better is} 12... Re8 $14) 13. O-O {[%emt 0:02:22]} (13. Qa3 $16) 13... Nf7 {[%emt 0:03:30]} 14. Qa3 {[%emt 0:02:24]} Re8 {[%emt 0:02:13]} 15. Bb5 {[%emt 0:07:01]} (15. Nb5 $14) 15... Bd7 {[%emt 0:03:08]} 16. Bxd7 {[%emt 0:06:07]} Nxd7 {[%emt 0:02:25]} (16... Qxd7 $11 17. Qb3 Rac8) 17. Rc1 {[%emt 0:01:39]} ({Better is} 17. Nb5 $16) 17... a6 {[%emt 0:19:32]} 18. Qb3 {[%emt 0:02:20]} b5 {[%emt 0:04:51]} 19. a4 {[%emt 0:02:52]} bxa4 {[%emt 0:03:43]} 20. Qxa4 {[%emt 0:00:57]} Nb6 {[%emt 0:05:04]} 21. Qa5 {[%emt 0:01:02]} Rab8 {[%emt 0:01:43]} 22. Qxa6 {[%emt 0:02:15]} e5 {[%emt 0:00:23]} 23. Bg3 {[%emt 0:00:36]} e4 {[%emt 0:01:48]} 24. Nd2 {[%emt 0:00:30]} Bf6 {[%emt 0:01:27]} (24... Qd7 $16 {was worth a try.} 25. Ra1 Rb7) 25. Nc4 {[%emt 0:03:05]} Nxc4 {[%emt 0:00:47]} 26. Nd5 {[%emt 0:00:23]} ({Resist} 26. Qxc4 Bxh4 27. Nd5 Qd8 28. Bxh4 (28. Qc3 Bxg3 29. fxg3 h5 $18) 28... Qxh4) 26... Qd8 {[%emt 0:01:35]} 27. Rxc4 {[%emt 0:01:12]} Bxh4 {[%emt 0:01:12]} 28. Bxh4 {[%emt 0:01:06]} Qxh4 {[%emt 0:00:24]} 29. b4 {[%emt 0:05:15]} Ra8 {[%emt 0:05:44]} 30. Qb6 {[%emt 0:02:03]} Ra2 {[%emt 0:02:12]} 31. Rc7 {[%emt 0:02:55]} Rea8 {[%emt 0:02:38]} 32. Qb7 {[%emt 0:01:42]} Rf8 {[%emt 0:07:46]} 33. Nf4 {[%emt 0:03:17]} Qf6 {[%emt 0:01:58]} 34. Re7 {[%emt 0:00:29]} g5 {[%emt 0:02:07]} 35. Nd5 {[%emt 0:01:36]} Qg6 {[%emt 0:00:32]} 36. Rxe4 {[%emt 0:00:45]} fxe4 {[%emt 0:02:22]} 37. Ne7+ {[%emt 0:00:05]} Kg7 {[%emt 0:00:22]} 38. Nxg6 {[%emt 0:00:04]} Kxg6 {[%emt 0:00:09]} 39. Qxe4+ {[%emt 0:00:03]} Kg7 {[%emt 0:00:27]} 40. Rc1 {[%emt 0:00:27]} Rb2 $18 {[%emt 0:01:12]} 41. Rb1 {[%emt 0:00:49]} Rxb1+ {[%emt 0:01:15]} 42. Qxb1 {[%emt 0:00:02]} Rb8 {[%emt 0:00:22]} 43. b5 {[%emt 0:00:04]} Kf6 {[%emt 0:00:48]} 44. b6 {[%emt 0:00:41]} d5 {[%emt 0:01:11]} 45. g4 {[%emt 0:01:58]} Ra8 {[%emt 0:04:02]} 1-0

[Event "Israel-ch Youth U8-18 2024"]
[Site "Kfar Saba"]
[Date "2024.04.16"]
[Round "1.9"]
[White "Brenner, Bar"]
[Black "Gilor, Amit"]
[Result "1-0"]
[ECO "B45"]
[WhiteElo "1739"]
[BlackElo "1931"]
[Annotator "TA"]
[PlyCount "45"]
[EventDate "2024.04.10"]
[EventType "swiss"]
[EventCountry "ISR"]
[SourceTitle "playchess.com"]
[Source "ChessBase"]
[SourceQuality "1"]
[TimeControl "5400+30"]

{[%evp 12,45,39,-47,50,-16,-14,-41,-29,-41,-34,-34,-52,-32,-33,-31,-32,-37,-35,-36,-25,-30,-30,-29,-13,-111,-37,-41,71,59,29989,29990,29990,29991,29994,29995]} 1. e4 {[%emt 0:00:03]} c5 {[%emt 0:00:05]} 2. Nf3 {[%emt 0:00:04]} e6 {[%emt 0:00:06]} 3. d4 {[%emt 0:00:03]} cxd4 {[%emt 0:00:04]} 4. Nxd4 {[%emt 0:00:05]} Nf6 {[%emt 0:00:07]} 5. Nc3 {[%emt 0:00:10]} Nc6 {[%emt 0:00:07]} 6. Ndb5 {[%emt 0:09:01]} Bb4 {[%emt 0:01:08]} 7. Bg5 {[%emt 0:15:26]} (7. a3 $14 Bxc3+ 8. Nxc3) 7... a6 {[%emt 0:19:16]} (7... h6 $15 8. Nd6+ Ke7) 8. Nd6+ {[%emt 0:17:53]} (8. a3 $1 $14 Bxc3+ 9. Nxc3) 8... Ke7 $11 {[%emt 0:04:26]} 9. Bf4 {[%emt 0:06:11]} e5 {[%emt 0:03:25] Black is slightly better.} 10. Nf5+ {[%emt 0:01:32]} Kf8 {[%emt 0:00:21]} 11. Bg5 {[%emt 0:03:23]} d5 {[%emt 0:15:05]} 12. Bxf6 {[%emt 0:03:48]} Qxf6 {[%emt 0:02:43]} 13. Qxd5 {[%emt 0:09:11]} Bxf5 {[%emt 0:05:29]} 14. exf5 {[%emt 0:00:24]} Rd8 {[%emt 0:00:18]} 15. Qf3 {[%emt 0:08:35] [#]} e4 {[%emt 0:04:45] Against Bd3} 16. Qe3 {[%emt 0:00:40]} Qxf5 {[%emt 0:02:26] Hoping for ...Bc5.} 17. Be2 {[%emt 0:01:48]} Bc5 {[%emt 0:01:13]} (17... h5 {simplifies} 18. O-O Re8 19. Na4 b5) 18. Qg3 {[%emt 0:01:05] [#]} (18. Bg4 $1 $11 Bxe3 (18... Qxg4 19. Qxc5+ Kg8 20. O-O $14) 19. Bxf5 Bd2+ 20. Ke2 Nd4+ 21. Kxd2 Nxf5+ 22. Kc1) 18... e3 {[%emt 0:02:05]} 19. fxe3 $15 {[%emt 0:03:05]} Qxc2 {[%emt 0:14:25]} (19... Nb4 $15 {stays ahead.} 20. Bd3 Qe6 (20... Nxd3+ 21. cxd3 Rxd3 22. Rf1 $15) (20... Nxc2+ 21. Bxc2 Qxc2 22. O-O $14)) 20. O-O $16 {[%emt 0:01:34] aiming for Qc7.} Re8 $2 {[%emt 0:02:33][%mdl 8192] [#]} (20... Qd2 $14) 21. Rxf7+ $3 {[%emt 0:02:59][%mdl 512] White mates.} Kxf7 {[%emt 0:00:29]} 22. Rf1+ {[%emt 0:00:35]} (22. Bc4+ Re6 $16 (22... Ke7 23. Qc7+ Kf6 24. Rf1+ Kg5 25. Qg3+ Kh5 26. Be2+)) 22... Ke6 {[%emt 0:03:03]} 23. Bg4+ {[%emt 0:14:25] Weighted Error Value: White=0.23 (precise) /Black=0.63.  Loses game:     	---       	Black=1      Mistake:       	White=2     	Black=2      Inaccurate:     	White=1     	---        OK:         	White=5     	Black=5      Best:        	White=2     	Black=4      Brilliant:      	White=1     	---} (23. Qxg7 Bxe3+ (23... Qxb2 24. Rf6+ Ke5 25. Qg5#) 24. Kh1 Rhf8 (24... Qxb2 25. Rf6+ Ke5 26. Rxc6+ Kf5 27. Qf6#) 25. Bg4+ (25. Rxf8 Rxf8 26. Qxf8 Qc1+ 27. Nd1 Bg5 $18) 25... Kd6 26. Rxf8 Qc1+ 27. Nd1 Re6 $18 (27... Rxf8 $2 28. Qxf8+ Kc7 29. Qf7+ Kb8 30. Qe8+ Kc7 31. Qxe3 $18)) 1-0

[Event "Israel-ch Youth U8-18 2024"]
[Site "Kfar Saba"]
[Date "2024.04.16"]
[Round "1.10"]
[White "Bedyovkin, Nataniel Alexey"]
[Black "Shilon Rahav, Eliran"]
[Result "0-1"]
[ECO "A90"]
[WhiteElo "1562"]
[BlackElo "2116"]
[Annotator "NA RC"]
[PlyCount "98"]
[EventDate "2024.04.10"]
[EventType "swiss"]
[EventCountry "ISR"]
[SourceTitle "playchess.com"]
[Source "ChessBase"]
[SourceQuality "1"]
[TimeControl "5400+30"]

1. d4 {[%emt 0:00:21]} d5 {[%emt 0:00:11]} 2. c4 {[%emt 0:00:24]} e6 {[%emt 0:00:24]} 3. Nf3 {[%emt 0:00:41]} c6 {[%emt 0:00:23]} 4. g3 {[%emt 0:00:28]} f5 {[%emt 0:01:38]} 5. Bg2 {[%emt 0:00:56]} Nf6 {[%emt 0:00:29]} 6. O-O {[%emt 0:00:57]} Bd6 {[%emt 0:00:13]} 7. b3 {[%emt 0:00:53]} Qe7 {[%emt 0:01:42]} 8. Bb2 {[%emt 0:01:28]} O-O {[%emt 0:01:27]} 9. Nbd2 {[%emt 0:00:53]} b6 {[%emt 0:03:12]} 10. Ne5 {[%emt 0:03:47]} Bb7 {[%emt 0:01:29]} 11. Nd3 {[%emt 0:02:18]} Nbd7 {[%emt 0:01:08] A90: Dutch Defence: Miscellaneous and Modern Stonewall (with ...Bd6).} 12. Nf3 {[%emt 0:02:24]} Rac8 {[%emt 0:01:50]} 13. Nfe5 {[%emt 0:02:22]} Rfd8 {[%emt 0:02:17]} 14. Qc2 {[%emt 0:06:09]} c5 {[%emt 0:01:43]} 15. dxc5 {[%emt 0:03:28]} Nxc5 {[%emt 0:01:18]} 16. Rac1 {[%emt 0:04:51]} dxc4 {[%emt 0:04:17]} 17. bxc4 {[%emt 0:01:06]} Bxg2 {[%emt 0:01:57]} 18. Kxg2 {[%emt 0:00:20]} b5 {[%emt 0:15:46]} 19. h4 {[%emt 0:08:26]} (19. Rfd1 $11 {keeps the balance.} Nxd3 20. exd3) 19... Na4 {[%emt 0:09:57]} (19... a6 $15) 20. Ba1 {[%emt 0:05:06]} Ne4 {[%emt 0:02:16]} 21. Rfd1 {[%emt 0:07:18]} (21. Qb3 $1 $11 Bxe5 22. Bxe5 bxc4 (22... Nac5 23. Qxb5 Nxd3 24. exd3 $11) 23. Rxc4 (23. Qxa4 cxd3 24. exd3 Nd2 $14)) 21... Nb6 $1 {[%emt 0:01:55]} 22. f3 $2 {[%emt 0:07:19]} (22. c5 $1 $15 Nxc5 (22... Bxc5 23. Qb3 $14) 23. Nxc5 Bxc5 (23... Rxc5 $2 {too greedy.} 24. Nc6 $18) 24. Qb3 Rxd1 25. Rxd1) 22... Nxc4 {[%emt 0:01:47]} (22... Nxg3 $19 23. c5 (23. Kxg3 $2 {perishes.} Rxc4 24. Qd2 Rxh4 $19) 23... Qxh4) 23. Nxc4 {[%emt 0:02:10]} Rxc4 {[%emt 0:00:13]} 24. Qb2 {[%emt 0:01:35]} Ba3 {[%emt 0:01:29]} 25. Qxb5 {[%emt 0:04:09]} Rxc1 {[%emt 0:00:50]} 26. Rxc1 {[%emt 0:00:10]} Nd6 {[%emt 0:00:44]} 27. Qb3 {[%emt 0:03:02]} Bxc1 {[%emt 0:00:15]} 28. Nxc1 {[%emt 0:00:12]} Nf7 {[%emt 0:03:17]} 29. Nd3 {[%emt 0:01:38]} Qd6 {[%emt 0:01:36]} 30. Qa4 {[%emt 0:05:27]} a6 {[%emt 0:06:41]} 31. Qc4 {[%emt 0:01:34]} Qd5 {[%emt 0:01:00]} 32. Qa4 $19 {[%emt 0:06:11]} e5 {[%emt 0:02:45]} 33. Nf2 {[%emt 0:02:33]} (33. Qc2 {was necessary.}) 33... Qb5 {[%emt 0:02:05]} 34. Qc2 {[%emt 0:00:42]} Nd6 {[%emt 0:01:58]} 35. Kh2 {[%emt 0:06:10]} Qc4 {[%emt 0:00:53]} 36. Qb2 {[%emt 0:00:41]} Nf7 {[%emt 0:00:19]} 37. Nd3 {[%emt 0:01:14]} Qb5 {[%emt 0:02:17]} 38. Qc3 {[%emt 0:00:21]} a5 {[%emt 0:00:48]} 39. f4 {[%emt 0:01:17]} Nh6 {[%emt 0:05:45]} 40. fxe5 {[%emt 0:02:16]} Ng4+ {[%emt 0:00:11]} 41. Kh3 {[%emt 0:00:50]} Qb7 {[%emt 0:01:31]} 42. Qe1 {[%emt 0:01:51]} Qe4 {[%emt 0:01:10]} 43. Qf1 {[%emt 0:00:51]} h5 {[%emt 0:01:23]} 44. a3 {[%emt 0:02:27]} Ne3 {[%emt 0:01:32]} 45. Qg1 {[%emt 0:00:41]} Qg4+ {[%emt 0:00:08]} 46. Kh2 {[%emt 0:00:28]} Qxe2+ {[%emt 0:00:03]} 47. Nf2 {[%emt 0:00:19]} Rd1 {[%emt 0:00:16]} 48. Qxd1 {[%emt 0:02:26]} Qxf2+ {[%emt 0:00:02]} 49. Kh1 {[%emt 0:00:10]} Qg2# {[%emt 0:00:02]} 0-1

[Event "Israel-ch Youth U8-18 2024"]
[Site "Kfar Saba"]
[Date "2024.04.16"]
[Round "1.11"]
[White "Vardi, Daniel"]
[Black "Ben Avi, Adam"]
[Result "1-0"]
[ECO "C10"]
[WhiteElo "1937"]
[BlackElo "1595"]
[Annotator "TA"]
[PlyCount "54"]
[EventDate "2024.04.10"]
[EventType "swiss"]
[EventCountry "ISR"]
[SourceTitle "playchess.com"]
[Source "ChessBase"]
[SourceQuality "1"]
[TimeControl "5400+30"]

{[%evp 14,54,31,21,28,27,56,23,55,43,61,64,42,56,134,139,398,399,397,392,581,563,545,558,1150,913,900,910,850,843,825,818,836,807,3018,3668,5002,4890,29987,29988,29991,29992,29992]} 1. e4 {[%emt 0:00:02]} e6 {[%emt 0:00:07]} 2. d4 {[%emt 0:00:09]} d5 {[%emt 0:00:06]} 3. Nd2 {[%emt 0:00:14]} dxe4 {[%emt 0:00:30]} 4. Nxe4 {[%emt 0:00:02]} Nd7 {[%emt 0:00:41][%cal Bb8d7,Bd7f6,Bf6d5][%mdl 32]} 5. Nf3 {[%emt 0:00:31]} Ngf6 {[%emt 0:00:18]} 6. Nxf6+ {[%emt 0:00:21]} Nxf6 {[%emt 0:00:37]} 7. Bd3 {[%emt 0:00:38]} c5 {[%emt 0:00:20]} 8. c3 {[%emt 0:01:22]} Qc7 {[%emt 0:02:21]} 9. O-O {[%emt 0:01:27]} Bd6 {[%emt 0:01:41]} 10. Bg5 {[%emt 0:01:50]} Nd5 {[%emt 0:05:39] White has an edge.} 11. Bb5+ {[%emt 0:02:43]} Bd7 {[%emt 0:01:03]} 12. Bxd7+ {[%emt 0:00:11]} Qxd7 {[%emt 0:00:14]} 13. dxc5 {[%emt 0:00:09]} Bc7 {[%emt 0:06:17]} (13... Bxc5 $14 14. Ne5 Qc7 15. Qa4+ Kf8 16. Nd7+ Kg8) 14. c4 $36 {[%emt 0:02:21][%cal Bc3c4,Bc4d5,Bd5d6,Bd6d7][%mdl 2080] Black is under strong pressure.} h6 $2 {[%emt 0:06:02][%mdl 8192]} (14... Nb4 $16 15. Qxd7+ Kxd7 16. Rfd1+ Kc8) 15. cxd5 $18 {[%emt 0:00:58]} hxg5 {[%emt 0:02:17]} 16. d6 {[%emt 0:00:05][%cal Of3e5] [#] Threatens to win with Ne5!} Bb8 {[%emt 0:09:08]} (16... Bd8 {keeps fighting.} 17. Ne5 Qb5 18. d7+ Kf8 19. Qd6+ Kg8) 17. Ne5 {[%emt 0:01:26]} Qb5 {[%emt 0:00:36]} 18. Rc1 {[%emt 0:05:05]} f6 {[%emt 0:03:35]} 19. d7+ {[%emt 0:00:30]} Kd8 {[%emt 0:03:59][%cal Be8d8,Bd8e7,Be7f7][%mdl 32]} 20. Nf7+ {[%emt 0:00:07]} Ke7 {[%emt 0:00:19]} 21. Nxh8 {[%emt 0:00:18][%cal Rd7d8] [#]} Bxh2+ {[%emt 0:02:40]} 22. Kxh2 {[%emt 0:00:02] White threatens Qd6+ and mate.} Rxh8+ {[%emt 0:00:11]} 23. Kg1 {[%emt 0:00:05] Hoping for Qd6+.} Qa5 {[%emt 0:07:12]} 24. Qd6+ {[%emt 0:00:19]} Kf7 {[%emt 0:00:30]} 25. c6 {[%emt 0:00:36][%cal Bc5c6,Bc6c7][%mdl 32] c7 would kill now.} Qb6 {[%emt 0:01:25]} 26. Rfd1 {[%emt 0:00:30]} Rd8 {[%emt 0:10:33]} 27. c7 {[%emt 0:00:07]} Rh8 {[%emt 0:00:54] Black did not feel at home in the position after the opening.   Weighted Error Value: White=0.07 (flawless) /Black=1.09.  Loses game:     	---       	Black=1      Mistake:       	---       	Black=2      Inaccurate:     	White=1     	Black=3      OK:         	White=5     	Black=2      Best:        	White=2     	Black=2} 1-0